bitfinex/quotes_ETHUSD_20260304
["timestamp","ask_amount","ask_price","bid_price","bid_amount"]
[1772640413039,0.002,2154.0,2152.7,6.14446216]
[1772640413244,0.002,2154.0,2152.9,6.14446216]
[1772640413445,0.002,2154.0,2153.0,7.14646216]
[1772640413975,0.002,2154.0,2153.0,6.14446216]
[1772640414274,0.002,2153.4,2152.8,1.002]
[1772640414853,0.002,2153.4,2152.7,1.002]
[1772640415075,0.002,2153.7,2152.7,7.14646216]
[1772640415646,0.002,2153.7,2152.7,6.14446216]
[1772640415870,0.002,2153.7,2152.8,1.002]
[1772640416371,0.002,2153.7,2152.9,1.16122439]
[1772640416873,0.002,2154.0,2152.9,2.16322439]
[1772640417073,0.002,2154.0,2152.9,1.16122439]
[1772640417253,0.002,2154.0,2152.8,1.16124145]
[1772640418374,1.16068526,2153.9,2152.3,1.16154811]
[1772640418543,1.16068526,2153.9,2152.3,7.30601027]
[1772640419673,1.16266193,2154.0,2152.6,0.065536]
[1772640419868,1.16266193,2154.0,2152.7,7.14646216]
[1772640420268,0.002,2154.0,2152.8,1.16127833]
[1772640421447,0.002,2154.0,2152.8,2.16327833]
[1772640422582,0.002,2154.0,2152.7,4.64511334]
[1772640422875,6.31517333,2154.0,2152.6,1.002]
[1772640423075,6.31517333,2154.0,2152.5,1.002]
[1772640423277,2.37517702,2153.9,2152.5,1.002]
[1772640423454,8.68835035,2153.9,2152.2,7.30606424]
[1772640423660,0.002,2154.0,2152.4,6.14446216]
[1772640424264,0.002,2154.0,2152.5,3.62091864]
[1772640424577,0.002,2154.0,2152.5,1.002]
[1772640424876,0.002,2154.0,2152.6,1.16138623]
[1772640425076,6.31317333,2153.8,2152.5,1.16139832]
[1772640425453,2.37517702,2153.9,2152.5,1.16139832]
[1772640425691,0.065536,2153.7,2152.0,2.09755998]
[1772640425888,6.31317333,2153.2,2151.6,1.16192271]
[1772640426473,6.31317333,2153.2,2151.5,7.3064067]
[1772640426786,6.31317333,2153.2,2151.5,1.16194454]
[1772640426787,6.31317333,2153.0,2151.5,1.16194454]
[1772640427250,6.31317333,2152.9,2151.0,8.30867672]
[1772640427450,6.31317333,2152.7,2151.0,1.16221456]
[1772640427650,6.31317333,2152.7,2151.0,2.16421456]
[1772640428084,6.31317333,2152.7,2151.0,1.16221456]
[1772640428247,6.31317333,2152.7,2152.5,0.001]
[1772640428453,6.31317333,2152.7,2151.0,1.16221456]
[1772640428857,1.16138623,2152.6,2150.8,7.30782035]
[1772640429057,4.64532912,2152.9,2152.2,0.001]
[1772640429248,4.64532912,2152.9,2151.4,6.14446216]
[1772640430976,4.64489758,2153.1,2151.5,7.30644217]
[1772640431496,6.31317333,2153.0,2151.1,6.14446216]
[1772640431787,5.60889758,2153.1,2151.1,6.14446216]
[1772640432092,6.31317333,2152.9,2151.3,6.14446216]
[1772640432594,6.31317333,2152.9,2151.0,1.16225011]
[1772640432895,1.16127833,2152.8,2151.0,7.30671227]
[1772640433066,7.47445166,2152.8,2151.1,7.14646216]
[1772640433258,7.47445166,2152.8,2151.1,6.14446216]
[1772640434802,1.16127833,2152.8,2151.1,6.14446216]
[1772640434965,1.16127833,2152.8,2151.3,6.14446216]
[1772640436222,1.16127833,2152.8,2151.5,6.14446216]
[1772640436366,7.47445166,2152.8,2151.2,1.16214206]
[1772640436970,7.47445166,2152.8,2151.1,1.16215229]
[1772640437170,7.47445166,2152.8,2151.0,6.14446216]
[1772640437377,7.47445166,2152.8,2151.0,7.30671212]
[1772640437671,7.47445166,2152.8,2150.9,1.16227657]
[1772640438887,7.47445166,2152.8,2150.8,1.16331446]
[1772640439064,6.27394264,2152.0,2150.8,0.001]
[1772640439267,6.27394264,2151.8,2150.5,0.001]
[1772640440794,6.27394264,2151.6,2150.5,0.001]
[1772640440967,1.16198001,2151.5,2150.5,0.001]
[1772640441169,6.27394264,2151.4,2150.5,0.001]
[1772640442107,6.27394264,2151.2,2150.3,0.001]
[1772640442312,7.23594264,2151.1,2150.3,0.001]
[1772640442470,6.27394264,2151.0,2149.8,0.001]
[1772640442670,7.43592265,2151.5,2149.8,7.38941778]
[1772640442969,6.27394264,2151.2,2149.8,0.001]
[1772640443196,6.21232841,2151.0,2149.8,0.001]
[1772640443509,2.1368926,2150.9,2149.8,0.001]
[1772640443670,6.21232841,2150.4,2149.5,0.001]
[1772640444620,6.21232841,2150.4,2148.9,0.001]
[1772640444766,6.21232841,2150.4,2148.9,1.16437382]
[1772640444969,0.962,2150.3,2148.9,1.16437382]
[1772640445209,1.16268254,2150.2,2148.9,1.18518764]
[1772640445511,1.16268254,2150.2,2148.9,7.37708501]
[1772640446010,2.12455274,2150.5,2149.0,6.21271119]
[1772640446307,0.962,2150.5,2149.0,6.21271119]
[1772640446603,2.12454778,2150.5,2149.0,6.21271119]
[1772640446822,2.12454778,2150.5,2149.2,6.21271119]
[1772640447301,2.12454778,2150.5,2149.3,7.37588059]
[1772640447807,2.12454778,2150.5,2149.0,1.16333178]
[1772640448108,10.47376879,2150.5,2148.9,1.16435506]
[1772640448607,10.47376879,2150.5,2148.9,7.37706625]
[1772640448608,8.33687619,2150.5,2148.9,7.37706625]
[1772640448772,8.34922101,2150.3,2148.9,1.16438449]
[1772640448971,6.21232841,2150.3,2148.9,0.001]
[1772640449175,1.16268254,2150.2,2148.9,7.37709358]
[1772640450109,7.37501095,2150.2,2148.9,0.001]
[1772640450909,0.962,2150.1,2148.9,0.001]
[1772640451215,1.16279069,2150.0,2148.9,0.001]
[1772640452510,6.21232841,2149.9,2148.9,0.001]
[1772640452907,6.21232841,2149.7,2148.9,0.001]
[1772640453074,0.962,2149.6,2148.9,0.001]
[1772640453280,1.16306117,2149.5,2148.9,0.001]
[1772640453981,0.962,2149.4,2148.9,0.001]
[1772640454494,0.962,2149.4,2148.6,0.001]
[1772640455387,1.1631694,2149.3,2148.6,0.001]
[1772640455815,1.1631694,2149.3,2148.3,0.001]
[1772640455816,7.37549781,2149.3,2148.3,0.001]
[1772640456802,7.37549781,2149.3,2147.3,1.47598528]
[1772640456803,2.1368926,2148.8,2147.3,1.47598528]
[1772640457089,0.963,2148.7,2147.3,7.68869647]
[1772640457288,1.16354835,2148.6,2147.3,7.37696173]
[1772640457522,1.16354835,2148.6,2147.3,7.37695487]
[1772640458414,1.16354835,2148.6,2147.5,6.21271119]
[1772640459415,1.16354835,2148.6,2147.5,7.3768363]
[1772640459617,1.16354835,2148.6,2147.5,7.37684415]
[1772640460122,1.16354835,2148.6,2147.1,1.16432288]
[1772640460288,7.37587676,2148.6,2147.1,6.21271119]
[1772640461330,1.16365667,2148.4,2146.8,3.90193326]
[1772640461509,1.16365667,2148.4,2146.9,6.21271119]
[1772640461918,7.37598508,2148.4,2146.9,6.21271119]
[1772640462302,2.1368926,2147.9,2146.1,1.16486575]
[1772640462521,1.95347508,2148.0,2146.1,7.37757694]
[1772640462837,1.95347508,2147.4,2146.1,1.16489067]
[1772640463019,0.965,2147.3,2146.1,1.16489067]
[1772640463197,0.965,2147.3,2145.8,1.16506664]
[1772640463393,1.164307,2147.2,2145.8,7.37777783]
[1772640464133,1.164307,2147.2,2145.9,6.21271119]
[1772640464597,0.14948499,2147.1,2145.7,2.73742499]
[1772640464801,0.966,2147.0,2145.5,7.37790414]
[1772640465308,4.65722801,2147.3,2145.9,6.21271119]
[1772640465509,4.65722801,2147.3,2145.8,7.37777783]
[1772640465895,4.65722801,2147.3,2145.8,6.21271119]
[1772640466419,0.966,2147.2,2145.8,6.21271119]
[1772640467453,1.16403594,2147.7,2146.0,6.21271119]
[1772640467802,1.16403594,2147.7,2146.3,2.73742499]
[1772640468004,0.966,2148.3,2146.4,6.21271119]
[1772640468714,0.966,2148.3,2146.6,6.12319056]
[1772640469052,0.966,2148.3,2146.8,6.12319056]
[1772640469346,0.966,2148.3,2146.8,7.12119056]
[1772640469542,1.16376501,2148.2,2146.9,1.1644697]
[1772640470036,1.16376501,2148.2,2146.9,7.68608518]
[1772640470236,1.16376501,2148.2,2146.9,6.12319056]
[1772640470437,1.16376501,2148.2,2146.5,7.28787725]
[1772640471018,1.16376501,2148.2,2146.6,0.997]
[1772640471223,1.16376501,2148.2,2146.7,6.12319056]
[1772640471624,1.1634942,2148.7,2146.8,7.2877145]
[1772640471954,1.1634942,2148.7,2147.0,6.12319056]
[1772640472275,7.41774447,2148.7,2147.2,6.12319056]
[1772640472445,1.1634942,2148.7,2147.2,6.12319056]
[1772640472635,0.002,2148.1,2147.2,6.12319056]
[1772640473040,0.002,2148.1,2146.8,7.2877145]
[1772640473945,0.002,2148.1,2147.0,6.12319056]
[1772640474521,0.002,2148.3,2147.0,6.18872656]
[1772640474740,0.002,2148.3,2147.2,6.12319056]
[1772640474938,0.002,2148.3,2147.3,0.997]
[1772640475144,0.002,2148.3,2147.4,6.12319056]
[1772640475543,0.002,2148.6,2147.5,6.12319056]
[1772640475751,0.002,2148.6,2147.7,6.12319056]
[1772640476921,0.002,2148.6,2147.2,7.28744334]
[1772640477149,0.002,2148.6,2147.4,6.12319056]
[1772640477717,0.002,2148.6,2147.5,7.28733491]
[1772640477932,1.1651694,2149.3,2147.6,6.18872656]
[1772640478260,1.16518005,2149.3,2147.8,6.12319056]
[1772640478464,1.16518005,2149.3,2148.0,6.12319056]
[1772640478667,1.16518005,2149.3,2148.2,6.12319056]
[1772640478963,1.16518005,2149.3,2148.4,6.12319056]
[1772640478964,0.002,2149.3,2148.4,6.12319056]
[1772640479118,0.002,2149.5,2148.6,6.12319056]
[1772640479316,0.002,2149.5,2148.7,7.12019056]
[1772640479537,1.16506299,2149.5,2148.7,7.12019056]
[1772640479769,0.002,2149.5,2148.7,7.28663389]
[1772640479944,0.002,2149.5,2148.8,6.12319056]
[1772640480344,0.002,2149.5,2148.9,7.12019056]
[1772640480745,1.1625744,2150.4,2148.9,7.12019056]
[1772640481455,1.16255511,2150.5,2148.9,7.12019056]
[1772640481752,4.6499535,2150.6,2149.1,7.28646821]
[1772640481933,6.25425027,2150.5,2149.1,6.12319056]
[1772640482269,6.25425027,2149.8,2148.1,3.79869428]
[1772640482421,2.28935905,2149.9,2147.4,11.77676797]
[1772640482422,6.25425027,2149.5,2147.4,11.77676797]
[1772640482622,6.25425027,2149.3,2147.4,8.2843567]
[1772640482852,0.963,2149.4,2147.5,6.12319056]
[1772640483067,7.21725027,2149.4,2147.5,6.12319056]
[1772640483222,6.25425027,2149.2,2147.5,6.12319056]
[1772640484084,1.16327765,2149.1,2147.6,7.2872807]
[1772640484642,1.16327765,2149.1,2147.7,6.12319056]
[1772640485049,1.16327765,2149.1,2147.8,0.997]
[1772640485376,1.16327765,2149.1,2147.7,7.12019056]
[1772640485576,1.16327765,2149.1,2147.1,1.16432216]
[1772640485577,6.25425027,2148.8,2147.1,1.16432216]
[1772640485781,6.25425027,2148.6,2146.8,4.65803441]
[1772640485985,6.25425027,2148.6,2146.7,8.28474969]
[1772640486277,6.25425027,2148.4,2146.7,8.28474969]
[1772640486673,6.25425027,2148.4,2147.7,0.001]
[1772640487079,1.16360251,2148.5,2147.7,0.001]
[1772640489772,7.41785278,2148.5,2147.5,0.001]
[1772640491266,1.16360251,2148.5,2147.5,0.001]
[1772640491572,0.962,2148.4,2147.5,0.001]
[1772640492393,1.16371084,2148.3,2147.5,0.001]
[1772640492966,1.16371084,2148.3,2147.2,0.001]
[1772640492967,7.41796111,2148.3,2147.2,0.001]
[1772640493394,1.16371084,2148.3,2147.2,0.001]
[1772640495501,6.25425027,2147.7,2146.6,0.001]
[1772640495688,0.963,2147.6,2146.6,0.001]
[1772640496021,0.963,2148.0,2146.6,7.28882203]
[1772640496303,0.963,2148.0,2146.7,6.12319056]
[1772640496466,1.16392755,2147.9,2146.8,1.16452394]
[1772640496667,1.16392755,2147.9,2146.8,7.2877145]
[1772640497067,1.16392755,2147.9,2146.6,0.001]
[1772640497068,7.41817782,2147.9,2146.6,0.001]
[1772640497467,0.14948499,2147.8,2146.6,0.001]
[1772640497666,6.25425027,2147.6,2146.6,0.001]
[1772640498607,1.16414435,2147.5,2146.6,0.001]
[1772640498909,0.964,2147.4,2146.6,0.001]
[1772640499473,7.15715423,2147.4,2146.6,0.001]
[1772640499809,0.964,2147.4,2146.6,0.001]
[1772640500098,0.964,2147.3,2146.6,0.001]
[1772640500688,1.164307,2147.2,2146.8,0.001]
[1772640501001,1.16414435,2147.5,2146.6,5.96612649]
[1772640501315,1.16414435,2147.5,2146.6,0.001]
[1772640503180,1.16414435,2147.5,2146.6,5.96612649]
[1772640503491,2.12907543,2147.7,2146.6,5.96612649]
[1772640504292,4.65412581,2148.8,2146.6,5.96612649]
[1772640504471,0.966,2148.7,2146.8,6.10256444]
[1772640504671,1.16354835,2148.6,2147.2,6.10256444]
[1772640504883,1.16504136,2149.6,2147.4,6.10256444]
[1772640505104,1.396,2149.4,2148.0,6.10256444]
[1772640505303,1.16500752,2149.6,2148.4,6.10256444]
[1772640505478,0.002,2149.6,2148.6,6.10256444]
[1772640505883,1.16298194,2149.7,2148.3,2.69051111]
[1772640505884,1.16493591,2149.8,2148.8,6.10256444]
[1772640506097,2.56090347,2149.8,2148.8,7.09456444]
[1772640506297,0.002,2149.8,2148.8,7.09456444]
[1772640506516,0.002,2149.8,2149.0,6.10256444]
[1772640506686,0.002,2149.8,2149.1,1.16327765]
[1772640506887,0.002,2149.8,2149.2,6.10256444]
[1772640507321,1.396,2149.7,2148.6,7.26611279]
[1772640507526,1.396,2149.6,2148.6,6.10256444]
[1772640507686,0.966,2149.9,2148.6,6.10256444]
[1772640507884,3.54298936,2149.8,2148.2,1.16373343]
[1772640508087,3.54298936,2149.8,2148.1,7.2663534]
[1772640508297,1.396,2149.7,2148.1,7.2663534]
[1772640508695,1.16306117,2149.5,2148.1,7.2663534]
[1772640508992,1.16306117,2149.5,2148.3,6.10256444]
[1772640509198,1.396,2149.4,2148.1,1.16378896]
[1772640509992,1.396,2149.4,2147.8,7.26650942]
[1772640511096,1.1631694,2149.3,2147.8,7.26650942]
[1772640511637,1.1631694,2149.3,2147.8,7.26654502]
[1772640511997,1.396,2149.2,2147.3,7.09356444]
[1772640512208,0.966,2149.1,2147.3,6.10256444]
[1772640512530,0.966,2149.1,2147.3,7.09356444]
[1772640512730,0.966,2149.1,2147.3,6.10256444]
[1772640512911,0.966,2149.1,2147.3,7.09356444]
[1772640513113,2.55933178,2149.0,2147.5,6.10256444]
[1772640514923,1.396,2149.0,2147.5,6.10256444]
[1772640515100,1.396,2149.0,2147.7,6.10256444]
[1772640515287,1.396,2149.0,2147.9,6.10256444]
[1772640515736,2.55933234,2149.0,2148.0,0.99]
[1772640515896,2.55933234,2149.0,2148.1,6.10256444]
[1772640516814,4.65241348,2149.5,2148.3,6.10256444]
[1772640517014,0.002,2149.0,2148.3,6.10256444]
[1772640517212,0.002,2149.0,2148.2,3.68051111]
[1772640517213,0.002,2149.0,2148.2,2.69051111]
[1772640517435,1.396,2148.9,2148.2,3.85424283]
[1772640518310,0.002,2149.0,2148.2,9.95680727]
[1772640518520,1.396,2148.9,2148.3,6.10256444]
[1772640518721,0.002,2149.3,2148.3,6.10256444]
[1772640518937,1.39,2149.2,2148.3,6.10256444]
[1772640519351,1.39,2149.1,2148.3,1.16369181]
[1772640519640,1.39,2149.1,2148.2,3.85423278]
[1772640520237,1.39,2149.1,2148.3,6.10256444]
[1772640521240,1.39,2149.1,2148.5,1.16360251]
[1772640521427,2.55328191,2149.1,2148.4,7.26617816]
[1772640521636,2.55328191,2149.1,2148.4,7.26621755]
[1772640521940,2.55328191,2149.1,2148.4,1.16365311]
[1772640523628,2.55328191,2149.1,2148.3,4.65483987]
[1772640524319,2.55328191,2149.1,2148.3,10.75740431]
[1772640524320,1.39,2149.1,2148.3,10.75740431]
[1772640524520,2.55329191,2149.1,2148.3,10.75740431]
[1772640524949,2.55329191,2149.1,2148.3,7.26627528]
[1772640526730,2.55329191,2149.1,2148.3,1.16371084]
[1772640527864,2.55329191,2149.1,2148.2,4.65492106]
[1772640528068,2.55329191,2149.1,2148.0,1.16387337]
[1772640528270,2.55329191,2149.1,2147.9,7.26645137]
[1772640528456,9.0001823,2149.1,2147.5,7.27907903]
[1772640529251,2.55329191,2149.1,2147.5,7.27907903]
[1772640529575,3.51829191,2149.1,2147.5,7.27907903]
[1772640529762,3.51829191,2149.1,2147.7,6.28607903]
[1772640529958,2.55328351,2149.1,2147.7,6.28707903]
[1772640530158,1.39,2149.1,2147.7,6.28707903]
[1772640530889,0.002,2149.3,2147.9,6.28607903]
[1772640531185,0.002,2149.3,2148.3,6.28607903]
[1772640531351,0.002,2149.3,2148.5,6.28607903]
[1772640531675,0.002,2149.3,2148.7,6.28607903]
[1772640531975,0.002,2149.3,2148.8,7.44951908]
[1772640532162,0.002,2149.8,2148.8,7.44951908]
[1772640532163,0.002,2149.8,2149.1,6.28607903]
[1772640532365,0.002,2150.1,2149.4,0.14948499]
[1772640532599,3.59852995,2151.2,2149.7,6.28607903]
[1772640532600,2.12716667,2151.2,2149.7,6.28607903]
[1772640533186,2.12716667,2151.2,2149.8,0.994]
[1772640533580,8.57405706,2151.2,2149.7,6.28607903]
[1772640533786,8.57405706,2151.2,2149.8,1.16289887]
[1772640533787,1.16225011,2151.0,2149.8,1.16289887]
[1772640534312,6.44689039,2150.9,2149.5,2.15702646]
[1772640534613,1.16225011,2151.0,2149.6,6.28607903]
[1772640535392,1.16225011,2151.0,2149.7,7.28007903]
[1772640535807,4.64900046,2151.2,2149.9,1.16284478]
[1772640536587,4.64739021,2151.8,2150.0,6.28607903]
[1772640536789,1.94594908,2151.6,2150.2,6.28607903]
[1772640537123,0.965,2151.5,2150.2,6.28607903]
[1772640537283,0.965,2151.5,2150.2,7.28107903]
[1772640537981,1.16203402,2151.4,2150.3,1.16262847]
[1772640538386,1.16203402,2151.4,2150.3,8.4437075]
[1772640538817,1.16203402,2151.4,2150.4,0.995]
[1772640539012,1.16203402,2151.4,2150.3,7.4487075]
[1772640539217,1.16203402,2151.4,2150.3,8.4437075]
[1772640539411,1.16203402,2151.4,2150.5,0.5]
[1772640540425,1.16203402,2151.4,2150.0,2.15779069]
[1772640541201,7.60892441,2151.4,2150.0,1.16279069]
[1772640542012,7.60892441,2151.4,2150.0,7.44886972]
[1772640542216,1.16203402,2151.4,2150.0,7.44886972]
[1772640542601,6.44689039,2151.2,2149.7,1.16295297]
[1772640542816,6.44689039,2151.2,2149.7,7.449032]
[1772640543016,1.16203402,2151.4,2149.7,7.449032]
[1772640543017,8.39283947,2151.1,2149.7,6.28607903]
[1772640543214,7.41189039,2151.0,2149.6,1.16300595]
[1772640543512,6.44689039,2150.7,2149.2,1.16319477]
[1772640543732,6.44689039,2150.4,2148.4,7.4497357]
[1772640543923,6.44689039,2150.1,2148.4,7.4497357]
[1772640544116,1.16284478,2149.9,2148.6,1.16354835]
[1772640545441,7.60973517,2149.9,2148.5,2.15956612]
[1772640545622,6.44689039,2149.6,2148.0,8.44589821]
[1772640545823,6.44689039,2149.6,2148.1,4.65522701]
[1772640545824,0.965,2149.5,2148.1,4.65522701]
[1772640546125,7.41189039,2149.5,2147.7,2.16098174]
[1772640546302,1.16311528,2149.4,2147.9,6.28607903]
[1772640546504,2.12795297,2149.8,2148.3,6.28607903]
[1772640546746,8.57484336,2149.8,2148.4,0.997]
[1772640547034,2.12795297,2149.8,2148.4,7.28307903]
[1772640547657,8.39283947,2149.7,2148.2,2.54659975]
[1772640547957,6.44689039,2149.7,2148.2,9.82967878]
[1772640548139,6.44689039,2149.7,2148.2,8.83267878]
[1772640548349,1.16300707,2149.6,2148.2,9.99640325]
[1772640548524,1.16300707,2149.6,2148.2,7.4498035]
[1772640548525,7.60989746,2149.6,2148.2,7.4498035]
[1772640548723,7.60989746,2149.6,2148.2,1.16372447]
[1772640548930,6.44689039,2149.3,2147.7,1.16500701]
[1772640549145,0.966,2149.2,2147.7,1.16500701]
[1772640549343,7.41289039,2149.2,2147.7,2.16200701]
[1772640550225,1.16327765,2149.1,2147.7,8.44808604]
[1772640550428,1.16327765,2149.1,2147.7,7.45108604]
[1772640550656,1.16327765,2149.1,2147.8,0.997]
[1772640550849,1.16327765,2149.1,2147.8,7.28307903]
[1772640551570,1.16327765,2149.1,2147.8,6.28607903]
[1772640551874,7.61016804,2149.1,2147.7,0.001]
[1772640552085,7.61016804,2149.1,2147.7,1.16502766]
[1772640552259,7.61016804,2149.1,2147.7,7.45110669]
[1772640552440,7.61016804,2149.1,2147.7,1.16502766]
[1772640552842,1.16327765,2149.1,2147.7,7.45110669]
[1772640554475,1.16327765,2149.1,2147.8,7.28407903]
[1772640554646,1.16327765,2149.1,2147.8,6.28607903]
[1772640554847,6.44689039,2148.9,2147.7,1.16502766]
[1772640555078,6.44689039,2148.9,2147.7,0.001]
[1772640555867,6.44689039,2148.7,2147.7,0.001]
[1772640556068,0.967,2148.6,2147.7,1.16503199]
[1772640556273,1.16327765,2149.1,2147.7,0.001]
[1772640556478,0.967,2148.7,2147.7,0.001]
[1772640556676,0.967,2148.7,2147.7,6.28707903]
[1772640557050,0.967,2148.7,2147.7,0.001]
[1772640557374,0.967,2149.0,2147.7,6.28707903]
[1772640558453,2.13037082,2149.0,2147.9,6.09358763]
[1772640558646,2.13037082,2149.0,2148.1,6.09358763]
[1772640559106,6.23440817,2148.9,2147.7,1.16503174]
[1772640559574,6.23440817,2148.9,2147.7,1.16502749]
[1772640560877,1.16344005,2148.8,2148.3,0.001]
[1772640561250,5.62076023,2149.0,2148.3,0.001]
[1772640561251,2.13033566,2149.0,2148.3,0.001]
[1772640561587,1.16318986,2149.3,2148.3,6.09458763]
[1772640561748,2.1311207,2149.4,2148.3,6.09458763]
[1772640561951,2.13115391,2149.4,2148.3,6.09458763]
[1772640562366,1.16315391,2149.4,2148.3,6.09458763]
[1772640562569,0.968,2149.3,2148.3,6.09458763]
[1772640562775,1.16322352,2149.2,2148.3,0.001]
[1772640563282,0.968,2149.5,2148.3,6.17952914]
[1772640563579,7.83475495,2149.2,2148.3,0.001]
[1772640563751,5.88451511,2149.1,2148.3,0.001]
[1772640563951,0.968,2149.0,2148.3,0.001]
[1772640564680,1.16338591,2148.9,2148.3,0.001]
[1772640565492,0.968,2148.9,2148.3,0.001]
[1772640566773,1.16344005,2148.8,2148.3,0.001]
[1772640566971,1.16344005,2148.8,2148.0,0.001]
[1772640567181,7.04795516,2148.8,2148.0,0.001]
[1772640569511,7.83475495,2148.3,2147.8,0.001]
[1772640569660,0.969,2148.2,2147.8,0.001]
[1772640569861,6.85351511,2148.2,2147.8,0.001]
[1772640570063,6.85351511,2148.2,2147.5,0.001]
[1772640570588,7.83475495,2148.6,2147.5,0.001]
[1772640570795,0.97,2148.5,2147.5,0.001]
[1772640570992,5.88451511,2148.6,2147.5,0.001]
[1772640571191,0.97,2148.4,2147.5,0.001]
[1772640571418,1.16371084,2148.3,2147.5,0.001]
[1772640571707,7.04822595,2148.3,2147.5,0.001]
[1772640573397,8.99846579,2148.3,2147.5,0.001]
[1772640573700,0.971,2148.2,2147.5,0.001]
[1772640573889,1.95023984,2148.1,2147.2,0.001]
[1772640574705,1.16371084,2148.3,2147.2,0.001]
[1772640575017,0.972,2148.2,2147.2,6.17952914]
[1772640575328,0.972,2148.2,2146.6,4.6588788]
[1772640575329,0.63331742,2145.7,2142.9,0.23973416]
[1772640575475,0.14948499,2142.3,2141.7,7.87817503]
[1772640575681,1.95023984,2143.2,2141.0,0.997]
[1772640575877,1.50365838,2144.6,2142.2,6.17852914]
[1772640576109,1.95023984,2144.4,2142.4,6.17852914]
[1772640576329,10.91901259,2143.7,2142.6,6.17852914]
[1772640576478,5.18919677,2143.7,2142.7,0.997]
[1772640576682,1.17210508,2143.6,2142.7,1.94969001]
[1772640576908,19.67242073,2144.8,2142.7,1.94969001]
[1772640577113,0.43073048,2144.7,2142.8,0.95269001]
[1772640577314,0.43073048,2144.6,2143.0,0.95269001]
[1772640577502,0.72992715,2145.1,2143.5,0.95269001]
[1772640577800,6.45308278,2145.0,2143.0,0.95269001]
[1772640578007,0.14948499,2144.8,2143.1,0.996]
[1772640578281,6.02365499,2143.8,2142.0,3.30202316]
[1772640578481,6.02365499,2143.8,2142.0,3.30201137]
[1772640578708,6.02365499,2143.6,2142.0,2.13490487]
[1772640578919,6.02365499,2143.2,2142.0,2.13490487]
[1772640579087,6.02365499,2142.8,2142.0,2.13490487]
[1772640579284,1.16680668,2142.6,2142.0,2.13490487]
[1772640579521,4.66593497,2143.2,2142.0,2.13490487]
[1772640579705,9.85513174,2143.2,2142.0,2.13490487]
[1772640580028,5.18919677,2143.1,2142.0,2.13490487]
[1772640580197,5.18919677,2143.1,2142.0,3.13090487]
[1772640580529,7.18980854,2143.8,2142.1,0.996]
[1772640580679,5.18919677,2143.6,2142.1,0.996]
[1772640580882,5.18919677,2143.6,2142.2,0.996]
[1772640581108,5.18919677,2143.6,2142.3,0.996]
[1772640581345,1.16631677,2143.5,2142.0,2.13490487]
[1772640581497,7.18997176,2143.5,2142.1,0.996]
[1772640581839,11.21285176,2143.4,2142.2,0.996]
[1772640582180,11.21285176,2143.4,2142.0,2.13490487]
[1772640582402,11.21285176,2143.4,2142.1,0.995]
[1772640582605,11.21285176,2143.4,2142.2,0.995]
[1772640583510,1.1664256,2143.3,2142.2,2.16201651]
[1772640583714,7.18977418,2143.9,2142.2,2.16201651]
[1772640583904,7.18976913,2143.9,2142.2,2.16201651]
[1772640584213,6.02365499,2143.9,2142.3,0.995]
[1772640584412,7.18976205,2143.9,2142.3,0.995]
[1772640584592,5.18919677,2143.8,2142.3,1.94769001]
[1772640584912,4.23650676,2143.7,2142.4,0.995]
[1772640585128,0.23906991,2143.8,2142.5,0.065536]
[1772640585431,0.23906991,2143.8,2142.6,1.16680668]
[1772640585617,0.23906991,2143.8,2142.7,0.065536]
[1772640585797,0.23906991,2143.8,2142.7,1.060536]
[1772640586001,0.23906991,2143.8,2142.7,0.065536]
[1772640586231,0.19130432,2143.8,2142.8,0.994]
[1772640586403,0.31143798,2144.8,2143.0,0.14948499]
[1772640586601,7.66548015,2145.1,2143.0,0.14948499]
[1772640586832,4.23650676,2145.0,2143.0,0.14948499]
[1772640586996,4.23650676,2145.0,2143.1,0.065536]
[1772640587403,10.73650676,2145.0,2143.3,0.065536]
[1772640587601,1.1655555,2144.9,2143.4,1.16637118]
[1772640587802,1.1655555,2144.9,2143.5,0.994]
[1772640588031,4.23650676,2144.8,2143.5,0.994]
[1772640588210,4.23650676,2144.8,2143.6,0.994]
[1772640588536,4.23650676,2144.7,2143.7,0.994]
[1772640589137,6.5,2144.5,2142.8,4.66677719]
[1772640589333,6.5,2144.5,2142.6,4.66715997]
[1772640589533,6.5,2144.5,2142.5,3.7663381]
[1772640589534,6.5,2144.3,2142.7,0.993]
[1772640589738,6.5,2143.9,2142.5,2.59953142]
[1772640590040,6.5,2143.7,2142.5,2.59953142]
[1772640590813,6.5,2143.5,2142.5,2.59953142]
[1772640591271,6.5,2143.3,2142.5,2.59953142]
[1772640591613,1.16658889,2143.0,2142.5,2.59953142]
[1772640592106,1.16658889,2143.0,2141.3,4.67002128]
[1772640592107,6.3739191,2142.3,2140.5,6.30697807]
[1772640592307,0.2401,2142.3,2140.7,2.59953142]
[1772640592545,4.23650676,2142.8,2140.9,5.85643142]
[1772640592933,4.23650676,2142.7,2141.3,5.85643142]
[1772640593134,10.37032586,2142.9,2141.0,7.9475177]
[1772640593337,1.16658889,2143.0,2141.1,6.84843142]
[1772640593538,4.23650676,2142.8,2141.2,5.92196742]
[1772640593734,1.16675222,2142.7,2141.4,0.065536]
[1772640594268,4.23650676,2142.6,2141.5,7.9475177]
[1772640594430,4.23650676,2142.6,2141.6,0.992]
[1772640594632,10.37032586,2142.6,2141.6,7.9475177]
[1772640595226,6.1338191,2142.5,2140.9,1.16773319]
[1772640595425,6.1338191,2142.5,2141.3,0.992]
[1772640595732,6.1338191,2142.3,2141.4,7.9475177]
[1772640595948,7.30078917,2142.3,2141.1,0.992]
[1772640596156,4.23650676,2142.2,2141.1,0.992]
[1772640596457,4.23650676,2142.2,2141.2,7.9475177]
[1772640596634,1.16678129,2142.7,2141.1,5.85643142]
[1772640596838,7.30060039,2142.7,2141.2,0.992]
[1772640597040,4.23650676,2142.6,2141.2,0.992]
[1772640597353,4.23650676,2142.6,2141.3,8.9385177]
[1772640597555,4.23650676,2142.6,2141.3,0.991]
[1772640597853,4.23650676,2142.6,2141.0,0.065536]
[1772640597854,1.16686114,2142.5,2141.5,1.16740602]
[1772640598229,4.23650676,2142.4,2141.6,8.9385177]
[1772640598457,4.23650676,2142.4,2141.7,0.991]
[1772640598950,4.23650676,2142.4,2141.6,0.991]
[1772640599151,4.23650676,2142.4,2141.7,7.9475177]